fUSD/lending_fUSD_20250720
["ID","MTS","AMOUNT","RATE_DAILY","PERIOD"]
[373571901,1753048254063,-1232.34,0.00019178,2]
[373571903,1753048254072,-480.0,0.00019178,2]
[373571905,1753048254081,-1774.27,0.00019178,2]
[373571907,1753048254091,-106.65350128,0.00019178,2]
[373571910,1753048254103,-336.26342061,0.00019178,2]
[373571912,1753048254114,-37.08307811,0.00019178,2]
[373571914,1753048254123,-480.0,0.00019178,2]
[373571916,1753048254134,-1198.1,0.00019178,2]
[373571918,1753048254144,-480.0,0.00019178,2]
[373571920,1753048254153,-480.0,0.00019178,2]
[373571922,1753048254162,-732.06,0.00019178,2]
[373571924,1753048254172,-798.59,0.00019178,2]
[373571926,1753048254186,-2332.74997696,0.00019178,2]
[373572131,1753048362222,68.89918159,0.00013699,2]
[373572132,1753048362247,142.78081841,0.00013699,2]
[373572136,1753048681946,10000.0,0.00023,30]
[373572138,1753048791826,461.08,0.00024955,120]
[373572140,1753049138626,-157.72981257,0.00016991,2]
[373572142,1753049225122,-236.67964064,0.00016991,2]
[373572143,1753049228122,-112.59054679,0.00016991,2]
[373572144,1753049228142,-189.09838718,0.00017333,2]
[373572145,1753049242086,-110.90161282,0.00017333,2]
[373572146,1753049242108,-391.65863818,0.00017333,2]
[373572152,1753049418877,315.15927901,0.000211,28]
[373572163,1753049431638,-300.0,0.00017333,2]
[373572164,1753049431649,-1200.0,0.00017333,2]
[373572165,1753049431659,-1000.0,0.00017334,2]
[373572166,1753049431669,-150.0,0.00017334,2]
[373572167,1753049431680,-150.0,0.00017334,2]
[373572168,1753049431691,-150.0,0.00017334,2]
[373572169,1753049431701,-150.0,0.00017334,2]
[373572170,1753049431711,-150.0,0.00017334,2]
[373572171,1753049431722,-150.0,0.00017334,2]
[373572172,1753049431736,-150.0,0.00017334,2]
[373572173,1753049431746,-150.0,0.00017334,2]
[373572174,1753049431757,-150.0,0.00017334,2]
[373572175,1753049431767,-299.91305319,0.00017334,2]
[373572176,1753049431777,-150.0,0.00017334,2]
[373572177,1753049431787,-150.00000001,0.00017334,2]
[373572178,1753049431801,-150.0,0.00017334,2]
[373572179,1753049431812,-150.0,0.00017334,2]
[373572180,1753049431822,-150.0,0.00017334,2]
[373572181,1753049431833,-150.0,0.00017495,2]
[373572182,1753049431843,-379.0,0.000175,2]
[373572183,1753049431854,-150.0,0.00017509,2]
[373572184,1753049431864,-150.0,0.00017655,2]
[373572185,1753049431874,-150.0,0.00017684,2]
[373572186,1753049431885,-150.0,0.00017719,2]
[373572187,1753049431895,-4523.66,0.00017738,2]
[373572188,1753049431907,-1000.0,0.00017752,2]
[373572189,1753049431917,-150.0,0.00017816,2]
[373572190,1753049431928,-150.0,0.0001786,2]
[373572191,1753049431942,-507.0,0.00017946,2]
[373572192,1753049431952,-150.0,0.00017976,2]
[373572193,1753049431962,-150.0,0.00017976,2]
[373572196,1753049432154,-150.0,0.00018035,2]
[373572197,1753049432165,-169.15,0.0001805,3]
[373572198,1753049432174,-666.0,0.00018085,2]
[373572199,1753049432186,-150.0,0.00018105,2]
[373572200,1753049432206,-150.0,0.00018137,2]
[373572201,1753049432216,-461.08,0.00018149,2]
[373572202,1753049432230,-150.0,0.00018161,2]
[373572203,1753049432240,-522.77,0.00018166,2]
[373572205,1753049432249,-166.34,0.00018171,2]
[373572207,1753049432259,-150.0,0.0001821,2]
[373572209,1753049432268,-600.0,0.00018255,2]
[373572210,1753049432278,-150.0,0.00018267,2]
[373572211,1753049432287,-150.0,0.00018297,2]
[373572212,1753049432297,-150.0,0.00018297,2]
[373572213,1753049432306,-150.0,0.00018297,2]
[373572214,1753049432316,-150.0,0.00018297,2]
[373572215,1753049432325,-335.5,0.00018329,2]
[373572216,1753049432334,-150.0,0.00018385,2]
[373572217,1753049432344,-150.0,0.000184,2]
[373572218,1753049432353,-150.0,0.00018458,2]
[373572219,1753049432363,-150.0,0.00018468,2]
[373572220,1753049432373,-150.0,0.0001849,2]
[373572221,1753049432382,-150.0,0.0001856,2]
[373572222,1753049432392,-150.0,0.00018562,2]
[373572223,1753049432402,-7142.856,0.00018588,2]
[373572224,1753049432411,-231.28369723,0.00018588,2]
[373572225,1753049432421,-500.0,0.000186,6]
[373572226,1753049432430,-150.0,0.00018618,2]
[373572227,1753049432440,-150.0,0.00018618,2]
[373572228,1753049432449,-504.5,0.000187,2]
[373572229,1753049432458,-1100.0,0.000187,6]
[373572230,1753049432468,-167.96,0.00018716,2]
[373572231,1753049432480,-150.0,0.00018733,2]
[373572232,1753049432490,-150.0,0.00018735,2]
[373572233,1753049432499,-155.78373356,0.00018769,2]
[373572234,1753049432509,-401.19111454,0.00018769,2]
[373572235,1753049432518,-600.0,0.00018769,2]
[373572236,1753049432528,-600.0,0.00018769,2]
[373572237,1753049432537,-600.0,0.00018769,2]
[373572238,1753049432547,-600.0,0.00018769,2]
[373572239,1753049432556,-295.74515975,0.00018769,2]
[373572240,1753049432566,-160.0,0.00018769,2]
[373572241,1753049432575,-151.0,0.00018769,2]
[373572242,1753049432593,-151.0,0.00018769,2]
[373572243,1753049432604,-205.07471953,0.00018769,2]
[373572244,1753049432613,-150.0,0.00018779,2]
[373572245,1753049432623,-384.38,0.00018779,2]
[373572246,1753049432632,-150.99,0.0001878,2]
[373572247,1753049432642,-11705.99128546,0.0001878,2]
[373572248,1753049432670,-3613.09871454,0.0001878,2]
[373572249,1753049432680,-299.99,0.0001878,4]
[373572250,1753049432690,-999.99,0.0001878,2]
[373572251,1753049432699,-6849.92128546,0.0001878,2]
[373572252,1753049432729,-263.263,0.0001878,2]
[373572253,1753049432744,-2886.80571454,0.0001878,2]
[373572254,1753049432754,-371.0,0.0001878,2]
[373572255,1753049432765,-212.19427546,0.00018788,2]
[373572256,1753049432786,-562.01988026,0.00018788,2]
[373572257,1753049432796,-1700.0,0.000188,6]
[373572258,1753049432805,-150.0,0.00018809,2]
[373572259,1753049432815,-150.0,0.00018875,2]
[373572260,1753049432826,-2300.0,0.000189,6]
[373572261,1753049432836,-214.64987425,0.000189,2]
[373572262,1753049432845,-150.0,0.0001891,2]
[373572263,1753049432855,-150.0,0.00018939,2]
[373572264,1753049432865,-6722.88414,0.0001899,2]
[373572265,1753049432874,-214.64987423,0.00019011,2]
[373572266,1753049432883,-335.5,0.00019016,2]
[373572267,1753049432893,-1680.0,0.00019019,2]
[373572268,1753049432903,-150.0,0.00019021,2]
[373572269,1753049432913,-300.0,0.00019066,2]
[373572270,1753049432922,-1000.0,0.00019066,2]
[373572271,1753049432936,-210.86573235,0.00019074,2]
[373572272,1753049432946,-839.31074571,0.00019074,2]
[373572273,1753049432955,-476.8747822,0.00019074,2]
[373572274,1753049432964,-160.0,0.00019074,2]
[373572275,1753049432975,-150.01,0.00019077,2]
[373572276,1753049432984,-547.95647296,0.00019078,2]
[373572277,1753049432994,-215.11218,0.00019078,2]
[373572278,1753049433004,-774.21415572,0.00019078,2]
[373572279,1753049433014,-2337.4847653,0.00019078,2]
[373572280,1753049433023,-151.33,0.00019078,2]
[373572281,1753049433033,-151.01,0.00019078,2]
[373572282,1753049433043,-150.66,0.00019078,2]
[373572283,1753049433052,-1392.6225,0.00019078,2]
[373572284,1753049433062,-540.2887,0.00019078,2]
[373572285,1753049433071,-1000.0,0.00019078,2]
[373572286,1753049433081,-5000.0,0.00019078,2]
[373572287,1753049433090,-2500.0,0.00019078,2]
[373572288,1753049433099,-150.0,0.00019085,2]
[373572289,1753049433109,-4126.0,0.00019094,2]
[373572290,1753049433119,-6050.0,0.00019094,2]
[373572291,1753049433128,-21364.0,0.00019094,2]
[373572292,1753049433138,-1355.12,0.00019096,2]
[373572293,1753049433147,-150.0,0.000191,2]
[373572294,1753049433157,-7705.01411857,0.000191,2]
[373572295,1753049433167,-214.64987423,0.00019122,2]
[373572296,1753049433177,-7407.141672,0.00019136,2]
[373572297,1753049433188,-2337.48476527,0.00019139,2]
[373572298,1753049433198,-2201.83,0.00019151,14]
[373572299,1753049433209,-156.8221664,0.00019159,2]
[373572300,1753049433219,-183.92,0.00019168,2]
[373572301,1753049433231,-697.59,0.00019168,2]
[373572302,1753049433241,-697.59,0.00019168,2]
[373572303,1753049433252,-182.08603505,0.00019168,2]
[373572304,1753049433262,-150.0,0.00019169,2]
[373572305,1753049433272,-10000.0,0.0001917,2]
[373572306,1753049433283,-5828.14721596,0.0001917,2]
[373572307,1753049433293,-4000.0,0.0001917,2]
[373572308,1753049433303,-500.0,0.00019173,2]
[373572309,1753049433313,-500.0,0.00019173,2]
[373572310,1753049433323,-503.26979438,0.00019173,2]
[373572311,1753049433332,-500.85268431,0.00019173,2]
[373572312,1753049433342,-500.0,0.00019177,2]
[373572313,1753049433352,-500.0,0.00019177,2]
[373572314,1753049433362,-356.23340879,0.00019177,2]
[373572315,1753049433371,-285.56062014,0.00019177,2]
[373572316,1753049433381,-415.32740244,0.00019177,2]
[373572317,1753049433391,-501.0,0.00019178,2]
[373572318,1753049433401,-480.0,0.00019178,2]
[373572319,1753049433411,-480.0,0.00019178,2]
[373572320,1753049433421,-462.25800695,0.00019178,2]
[373572321,1753049433430,-151.0,0.00019178,2]
[373572322,1753049433440,-480.0,0.00019178,2]
[373572323,1753049433450,-480.0,0.00019178,2]
[373572324,1753049433460,-480.0,0.00019178,2]
[373572325,1753049433471,-399.2699213,0.00019178,2]
[373572326,1753049433483,-480.0,0.00019178,2]
[373572327,1753049433493,-460.85872908,0.00019178,2]
[373572328,1753049433504,-461.16503556,0.00019178,2]
[373572329,1753049433513,-480.0,0.00019178,2]
[373572330,1753049433523,-180.73921489,0.00019178,2]
[373572331,1753049433533,-480.0,0.00019178,2]
[373572332,1753049433542,-500.0,0.00019178,2]
[373572333,1753049433552,-500.0,0.00019178,2]
[373572334,1753049433562,-500.0,0.00019178,2]
[373572335,1753049433571,-451.54292143,0.00019178,2]
[373572336,1753049433581,-480.0,0.00019178,2]
[373572337,1753049433590,-497.42828393,0.00019178,2]
[373572338,1753049433600,-1000.0,0.00019178,2]
[373572339,1753049433610,-184.98966366,0.00019178,2]
[373572340,1753049433619,-480.0,0.00019178,2]
[373572341,1753049433628,-480.0,0.00019178,2]
[373572342,1753049433638,-480.0,0.00019178,2]
[373572343,1753049433648,-480.0,0.00019178,2]
[373572344,1753049433658,-480.0,0.00019178,2]
[373572345,1753049433668,-480.0,0.00019178,2]
[373572346,1753049433677,-461.76120435,0.00019178,2]
[373572347,1753049433687,-480.0,0.00019178,2]
[373572348,1753049433696,-460.0,0.00019178,2]
[373572349,1753049433706,-151.0,0.00019178,2]
[373572350,1753049433715,-480.0,0.00019178,2]
[373572351,1753049433726,-480.0,0.00019178,2]
[373572352,1753049433735,-495.55443526,0.00019178,2]
[373572353,1753049433745,-230.12466,0.00019178,2]
[373572354,1753049433754,-480.0,0.00019178,2]
[373572355,1753049433765,-230.12466,0.00019178,2]
[373572356,1753049433774,-480.0,0.00019178,2]
[373572357,1753049433784,-480.0,0.00019178,2]
[373572358,1753049433794,-480.0,0.00019178,2]
[373572359,1753049433804,-461.98050828,0.00019178,2]
[373572360,1753049433813,-480.0,0.00019178,2]
[373572361,1753049433823,-480.0,0.00019178,2]
[373572362,1753049433832,-480.0,0.00019178,2]
[373572363,1753049433842,-480.0,0.00019178,2]
[373572364,1753049433852,-621.35489821,0.00019178,2]
[373572365,1753049433861,-480.0,0.00019178,2]
[373572366,1753049433871,-500.0,0.00019178,2]
[373572367,1753049433881,-500.0,0.00019178,2]
[373572368,1753049433890,-500.0,0.00019178,2]
[373572369,1753049433900,-500.0,0.00019178,2]
[373572370,1753049433910,-500.0,0.00019178,2]
[373572371,1753049433919,-561.29188009,0.00019178,2]
[373572372,1753049433929,-156.574896,0.00019178,2]
[373572373,1753049433942,-156.574896,0.00019178,2]
[373572374,1753049433951,-151.0,0.00019178,2]
[373572375,1753049433961,-462.17366188,0.00019178,2]
[373572376,1753049433970,-438.49597645,0.00019178,2]
[373572377,1753049433984,-480.0,0.00019178,2]
[373572378,1753049433993,-460.0,0.00019178,2]
[373572379,1753049434003,-460.0,0.00019178,2]
[373572380,1753049434014,-461.8884924,0.00019178,2]
[373572381,1753049434024,-419.07565482,0.00019178,2]
[373572382,1753049434033,-461.48858049,0.00019178,2]
[373572383,1753049434043,-224.46896549,0.00019178,2]
[373572384,1753049434054,-480.0,0.00019178,2]
[373572385,1753049434063,-213.29128716,0.00019178,2]
[373572386,1753049434073,-480.0,0.00019178,2]
[373572387,1753049434083,-461.14221033,0.00019178,2]
[373572388,1753049434092,-291.6838158,0.00019178,2]
[373572389,1753049434102,-460.0,0.00019178,2]
[373572390,1753049434112,-451.26767718,0.00019178,2]
[373572391,1753049434121,-460.0,0.00019178,2]
[373572392,1753049434131,-480.0,0.00019178,2]
[373572393,1753049434140,-460.0,0.00019178,2]
[373572394,1753049434150,-480.0,0.00019178,2]
[373572395,1753049434159,-480.0,0.00019178,2]
[373572396,1753049434169,-480.0,0.00019178,2]
[373572397,1753049434178,-480.0,0.00019178,2]
[373572398,1753049434187,-460.0,0.00019178,2]
[373572399,1753049434197,-480.0,0.00019178,2]
[373572400,1753049434206,-480.0,0.00019178,2]
[373572401,1753049434215,-446.56092818,0.00019178,2]
[373572402,1753049434226,-460.0,0.00019178,2]
[373572403,1753049434236,-460.0,0.00019178,2]
[373572404,1753049434246,-200.0,0.00019178,2]
[373572405,1753049434255,-480.0,0.00019178,2]
[373572406,1753049434265,-480.0,0.00019178,2]
[373572407,1753049434274,-460.0,0.00019178,2]
[373572408,1753049434283,-460.0,0.00019178,2]
[373572409,1753049434293,-480.0,0.00019178,2]
[373572410,1753049434302,-461.35090491,0.00019178,2]
[373572411,1753049434313,-480.0,0.00019178,2]
[373572412,1753049434322,-480.0,0.00019178,2]
[373572413,1753049434331,-420.0,0.00019178,2]
[373572414,1753049434341,-480.0,0.00019178,2]
[373572415,1753049434350,-480.0,0.00019178,2]
[373572416,1753049434359,-480.0,0.00019178,2]
[373572417,1753049434369,-462.34383609,0.00019178,2]
[373572418,1753049434378,-460.0,0.00019178,2]
[373572419,1753049434388,-460.0,0.00019178,2]
[373572420,1753049434398,-460.23928002,0.00019178,2]
[373572421,1753049434407,-480.0,0.00019178,2]
[373572422,1753049434417,-480.0,0.00019178,2]
[373572423,1753049434426,-480.0,0.00019178,2]
[373572424,1753049434435,-442.47550599,0.00019178,2]
[373572425,1753049434446,-200.07419469,0.00019178,2]
[373572426,1753049434455,-480.0,0.00019178,2]
[373572427,1753049434464,-525.77220077,0.00019178,2]
[373572428,1753049434479,-480.0,0.00019178,2]
[373572429,1753049434489,-480.0,0.00019178,2]
[373572430,1753049434499,-480.0,0.00019178,2]
[373572431,1753049434508,-480.0,0.00019178,2]
[373572432,1753049434518,-442.72511796,0.00019178,2]
[373572433,1753049434527,-460.0,0.00019178,2]
[373572434,1753049434537,-440.0,0.00019178,2]
[373572435,1753049434546,-480.0,0.00019178,2]
[373572436,1753049434556,-480.0,0.00019178,2]
[373572437,1753049434566,-480.0,0.00019178,2]
[373572438,1753049434575,-480.0,0.00019178,2]
[373572439,1753049434585,-480.0,0.00019178,2]
[373572440,1753049434594,-480.0,0.00019178,2]
[373572441,1753049434604,-500.0,0.00019178,2]
[373572442,1753049434613,-500.0,0.00019178,2]
[373572443,1753049434623,-500.0,0.00019178,2]
[373572444,1753049434632,-480.0,0.00019178,2]
[373572445,1753049434641,-563.9580915,0.00019178,2]
[373572446,1753049434652,-480.0,0.00019178,2]
[373572447,1753049434661,-460.82821902,0.00019178,2]
[373572448,1753049434671,-222.437778,0.00019178,2]
[373572449,1753049434680,-464.89693094,0.00019178,2]
[373572450,1753049434690,-468.85634852,0.00019178,2]
[373572451,1753049434699,-480.0,0.00019178,2]
[373572452,1753049434708,-222.437778,0.00019178,2]
[373572453,1753049434718,-480.0,0.00019178,2]
[373572454,1753049434729,-480.0,0.00019178,2]
[373572455,1753049434739,-480.0,0.00019178,2]
[373572456,1753049434748,-480.0,0.00019178,2]
[373572457,1753049434757,-480.0,0.00019178,2]
[373572458,1753049434766,-480.0,0.00019178,2]
[373572459,1753049434775,-711.15,0.00019178,2]
[373572460,1753049434785,-480.0,0.00019178,2]
[373572461,1753049434794,-480.0,0.00019178,2]
[373572462,1753049434803,-480.0,0.00019178,2]
[373572463,1753049434813,-480.0,0.00019178,2]
[373572464,1753049434822,-460.0,0.00019178,2]
[373572465,1753049434832,-601.25,0.00019178,2]
[373572466,1753049434842,-480.0,0.00019178,2]
[373572467,1753049434852,-466.30861231,0.00019178,2]
[373572468,1753049434862,-480.0,0.00019178,2]
[373572469,1753049434872,-480.0,0.00019178,2]
[373572470,1753049434882,-480.0,0.00019178,2]
[373572471,1753049434891,-480.0,0.00019178,2]
[373572472,1753049434901,-480.0,0.00019178,2]
[373572473,1753049434910,-480.0,0.00019178,2]
[373572474,1753049434920,-681.18,0.00019178,2]
[373572475,1753049434931,-480.0,0.00019178,2]
[373572476,1753049434943,-480.0,0.00019178,2]
[373572477,1753049434953,-400.0,0.00019178,2]
[373572478,1753049434962,-480.0,0.00019178,2]
[373572479,1753049434972,-480.0,0.00019178,2]
[373572480,1753049434982,-480.0,0.00019178,2]
[373572481,1753049434992,-480.0,0.00019178,2]
[373572482,1753049435001,-445.71772965,0.00019178,2]
[373572483,1753049435011,-460.0,0.00019178,2]
[373572484,1753049435021,-808.03,0.00019178,2]
[373572485,1753049435031,-318.25483885,0.00019178,2]
[373572486,1753049435040,-480.0,0.00019178,2]
[373572487,1753049435050,-480.0,0.00019178,2]
[373572488,1753049435059,-480.0,0.00019178,2]
[373572489,1753049435069,-480.0,0.00019178,2]
[373572490,1753049435079,-500.0,0.00019178,2]
[373572491,1753049435088,-500.0,0.00019178,2]
[373572492,1753049435098,-500.0,0.00019178,2]
[373572493,1753049435107,-480.0,0.00019178,2]
[373572494,1753049435117,-480.0,0.00019178,2]
[373572495,1753049435126,-480.0,0.00019178,2]
[373572496,1753049435136,-480.0,0.00019178,2]
[373572497,1753049435145,-480.0,0.00019178,2]
[373572498,1753049435155,-480.0,0.00019178,2]
[373572499,1753049435164,-480.0,0.00019178,2]
[373572500,1753049435173,-480.0,0.00019178,2]
[373572501,1753049435183,-480.0,0.00019178,2]
[373572502,1753049435192,-480.0,0.00019178,2]
[373572503,1753049435202,-480.0,0.00019178,2]
[373572504,1753049435211,-480.0,0.00019178,2]
[373572505,1753049435221,-480.0,0.00019178,2]
[373572506,1753049435232,-480.0,0.00019178,2]
[373572507,1753049435242,-480.0,0.00019178,2]
[373572508,1753049435252,-480.0,0.00019178,2]
[373572509,1753049435261,-662.23,0.00019178,2]
[373572510,1753049435271,-364.76349498,0.00019178,2]
[373572511,1753049435280,-480.0,0.00019178,2]
[373572512,1753049435289,-480.0,0.00019178,2]
[373572513,1753049435299,-480.0,0.00019178,2]
[373572514,1753049435309,-480.0,0.00019178,2]
[373572515,1753049435318,-480.0,0.00019178,2]
[373572516,1753049435327,-480.0,0.00019178,2]
[373572517,1753049435340,-480.0,0.00019178,2]
[373572518,1753049435350,-440.0,0.00019178,2]
[373572519,1753049435359,-480.0,0.00019178,2]
[373572520,1753049435369,-480.0,0.00019178,2]
[373572521,1753049435379,-480.0,0.00019178,2]
[373572522,1753049435389,-440.0,0.00019178,2]
[373572523,1753049435398,-480.0,0.00019178,2]
[373572524,1753049435408,-480.0,0.00019178,2]
[373572525,1753049435417,-480.0,0.00019178,2]
[373572526,1753049435427,-558.29,0.00019178,2]
[373572527,1753049435436,-480.0,0.00019178,2]
[373572528,1753049435446,-513.47930855,0.00019178,2]
[373572529,1753049435459,-480.0,0.00019178,2]
[373572530,1753049435471,-480.0,0.00019178,2]
[373572531,1753049435482,-480.0,0.00019178,2]
[373572532,1753049435492,-480.0,0.00019178,2]
[373572533,1753049435501,-480.0,0.00019178,2]
[373572534,1753049435511,-469.43767601,0.00019178,2]
[373572535,1753049435520,-480.0,0.00019178,2]
[373572536,1753049435530,-480.0,0.00019178,2]
[373572537,1753049435539,-420.0,0.00019178,2]
[373572538,1753049435550,-488.21,0.00019178,2]
[373572539,1753049435559,-386.21371866,0.00019178,2]
[373572540,1753049435569,-824.77,0.00019178,2]
[373572541,1753049435578,-506.19,0.00019178,2]
[373572542,1753049435588,-480.0,0.00019178,2]
[373572543,1753049435597,-480.0,0.00019178,2]
[373572544,1753049435607,-480.0,0.00019178,2]
[373572545,1753049435616,-480.0,0.00019178,2]
[373572546,1753049435626,-480.0,0.00019178,2]
[373572547,1753049435635,-480.0,0.00019178,2]
[373572548,1753049435645,-564.82,0.00019178,2]
[373572549,1753049435655,-480.0,0.00019178,2]
[373572550,1753049435664,-480.0,0.00019178,2]
[373572551,1753049435673,-480.0,0.00019178,2]
[373572552,1753049435683,-480.0,0.00019178,2]
[373572553,1753049435692,-480.0,0.00019178,2]
[373572554,1753049435701,-480.0,0.00019178,2]
[373572555,1753049435711,-480.0,0.00019178,2]
[373572556,1753049435720,-480.0,0.00019178,2]
[373572557,1753049435732,-480.0,0.00019178,2]
[373572558,1753049435742,-480.0,0.00019178,2]
[373572559,1753049435751,-480.0,0.00019178,2]
[373572560,1753049435761,-480.0,0.00019178,2]
[373572561,1753049435770,-480.0,0.00019178,2]
[373572562,1753049435779,-480.0,0.00019178,2]
[373572563,1753049435788,-480.0,0.00019178,2]
[373572564,1753049435798,-480.0,0.00019178,2]
[373572565,1753049435807,-687.44,0.00019178,2]
[373572566,1753049435817,-480.0,0.00019178,2]
[373572567,1753049435827,-480.0,0.00019178,2]
[373572568,1753049435836,-812.43,0.00019178,2]
[373572569,1753049435845,-480.0,0.00019178,2]
[373572570,1753049435855,-480.0,0.00019178,2]
[373572571,1753049435864,-480.0,0.00019178,2]
[373572572,1753049435873,-480.0,0.00019178,2]
[373572573,1753049435886,-480.0,0.00019178,2]
[373572574,1753049435896,-500.0,0.00019178,2]
[373572575,1753049435905,-1587.11,0.00019178,2]
[373572576,1753049435915,-500.0,0.00019178,2]
[373572577,1753049435924,-480.0,0.00019178,2]
[373572578,1753049435937,-480.0,0.00019178,2]
[373572579,1753049435947,-480.0,0.00019178,2]
[373572580,1753049435956,-480.0,0.00019178,2]
[373572581,1753049435965,-480.0,0.00019178,2]
[373572582,1753049435977,-480.0,0.00019178,2]
[373572583,1753049435986,-480.0,0.00019178,2]
[373572584,1753049435996,-480.0,0.00019178,2]
[373572585,1753049436006,-480.0,0.00019178,2]
[373572586,1753049436016,-460.0,0.00019178,2]
[373572587,1753049436025,-480.0,0.00019178,2]
[373572588,1753049436036,-364.1146478,0.00019178,2]
[373572589,1753049436045,-1104.92,0.00019178,2]
[373572590,1753049436055,-480.0,0.00019178,2]
[373572591,1753049436065,-578.89,0.00019178,2]
[373572592,1753049436075,-480.0,0.00019178,2]
[373572593,1753049436084,-480.0,0.00019178,2]
[373572594,1753049436094,-480.0,0.00019178,2]
[373572595,1753049436103,-480.0,0.00019178,2]
[373572596,1753049436112,-480.0,0.00019178,2]
[373572597,1753049436122,-480.0,0.00019178,2]
[373572598,1753049436132,-982.92,0.00019178,2]
[373572599,1753049436142,-480.0,0.00019178,2]
[373572600,1753049436152,-765.32,0.00019178,2]
[373572601,1753049436162,-480.0,0.00019178,2]
[373572602,1753049436172,-480.0,0.00019178,2]
[373572603,1753049436181,-480.0,0.00019178,2]
[373572604,1753049436191,-480.0,0.00019178,2]
[373572605,1753049436201,-480.0,0.00019178,2]
[373572606,1753049436211,-460.0,0.00019178,2]
[373572607,1753049436220,-480.0,0.00019178,2]
[373572608,1753049436231,-480.0,0.00019178,2]
[373572609,1753049436241,-480.0,0.00019178,2]
[373572610,1753049436251,-328.22081584,0.00019178,2]
[373572611,1753049436260,-460.0,0.00019178,2]
[373572612,1753049436271,-480.0,0.00019178,2]
[373572613,1753049436280,-480.0,0.00019178,2]
[373572614,1753049436291,-867.98,0.00019178,2]
[373572615,1753049436301,-151.0,0.00019178,2]
[373572616,1753049436312,-440.88572945,0.00019178,2]
[373572617,1753049436322,-486.41132041,0.00019178,2]
[373572618,1753049436332,-480.0,0.00019178,2]
[373572619,1753049436572,-460.8073734,0.00019178,2]
[373572620,1753049436582,-480.0,0.00019178,2]
[373572621,1753049436591,-460.0,0.00019178,2]
[373572622,1753049436600,-480.0,0.00019178,2]
[373572623,1753049436609,-562.95,0.00019178,2]
[373572624,1753049436619,-1407.85,0.00019178,2]
[373572625,1753049436629,-1197.29,0.00019178,2]
[373572626,1753049436639,-480.0,0.00019178,2]
[373572627,1753049436648,-384.2989592,0.00019178,2]
[373572628,1753049436658,-480.0,0.00019178,2]
[373572629,1753049436668,-480.0,0.00019178,2]
[373572630,1753049436677,-480.0,0.00019178,2]
[373572631,1753049436687,-480.0,0.00019178,2]
[373572632,1753049436697,-639.07,0.00019178,2]
[373572633,1753049436706,-480.0,0.00019178,2]
[373572634,1753049436716,-480.0,0.00019178,2]
[373572635,1753049436727,-480.0,0.00019178,2]
[373572636,1753049436736,-330.32862708,0.00019178,2]
[373572637,1753049436745,-300.0,0.00019178,2]
[373572638,1753049436755,-480.0,0.00019178,2]
[373572639,1753049436764,-480.0,0.00019178,2]
[373572640,1753049436774,-906.19,0.00019178,2]
[373572641,1753049436786,-460.0,0.00019178,2]
[373572642,1753049436795,-1161.02,0.00019178,2]
[373572643,1753049436804,-1461.0,0.00019178,2]